Cogmind - Beta 15 @@@ ROGUE MODE // 2025.05.12 @ 02:11:23 Player: Cogchaaaan Result: Destroyed by Y-64 Sentinel with Wave Gun Performance ------------- Evolutions (5) 2500 Regions Visited (17) 3400 Robots Destroyed (265) 1325 Value Destroyed (9326) 9326 Prototype IDs (21) 420 Alien Tech Used (0) 0 Bonus (1287) 1287 TOTAL SCORE: 18258 Bonus ------- High Alert Combat Kills 36 Follower Combat Kills 846 Met Data Miner 300 Met Imprinter 300 Friendly Fire -195 Cogmind --------- Core Integrity 0/1000 Matter 272/300 Energy 505/505 System Corruption 45% Temperature Cool (9) Movement Treading (166) Location -5/Extension Parts ------- > --- POWER (2) -------- Reinforced Deuterium Engine Neutrino Core > --- PROPULSION (4) --- Improved Medium Treads Armored Medium Treads Armored Medium Treads > --- UTILITY (8) ------ Advanced Heat Sink Advanced Heat Sink High-capacity Storage Unit Advanced Signal Interpreter Advanced Salvage Targeting Computer Advanced Targeting Computer Core Analyzer > --- WEAPON (3) ------- Heavy Gatling Laser Heavy Gatling Laser > --- INVENTORY (20) --- Neutrino Core Reinforced Fission Core Light Antimatter Reactor Carbon-fiber Leg VTOL Module Huge Storage Unit Structural Scanner Improved Sensor Array Experimental Sensor Array Advanced Terrain Scan Processor EM Shield Improved Hacking Suite Beamcaster Heavy Plasma Cannon Heavy Phase Cannon Heavy Machine Gun Rocket Array Peak State ------------ > --- POWER ------------ Reinforced Deuterium Engine Neutrino Core > --- PROPULSION ------- Carbon-fiber Leg Carbon-fiber Leg Flexi-carbon Leg Flexi-carbon Leg > --- UTILITY ---------- Advanced Heat Sink Advanced Heat Sink High-capacity Storage Unit Advanced Signal Interpreter Advanced Salvage Targeting Computer Advanced Targeting Computer Core Analyzer Improved Medium Armor Plating > --- WEAPON ----------- Heavy Gatling Laser Heavy Gatling Laser Heavy Machine Gun > --- INVENTORY -------- Neutrino Core Reinforced Fission Core Improved Medium Treads Armored Medium Treads Armored Medium Treads Carbon-fiber Leg VTOL Module Huge Storage Unit Structural Scanner Improved Sensor Array Experimental Sensor Array Advanced Terrain Scan Processor EM Shield Hardlight Generator Improved Hacking Suite Beamcaster Improved EM Pulse Cannon Heavy Plasma Cannon Heavy Phase Cannon Rocket Array [Rating: 87] Favorites ----------- Power Reinforced Deuterium Engine Engine Reinforced Deuterium Engine Power Core Light Nuclear Core Propulsion Light Treads Treads Light Treads Leg Carbon-fiber Leg Utility High-capacity Storage Unit Device Experimental Sensor Array Storage High-capacity Storage Unit Processor Advanced Targeting Computer Protection Improved Medium Armor Plating Weapon Gatling Laser Energy Gun Gatling Laser Energy Cannon Ion Cannon Ballistic Gun Improved Assault Rifle Launcher Missile Launcher Slashing Weapon Great Axe Piercing Weapon CR-A16's Pointy Stick Build | -11 -10 -10 -9 -9 -8 -7 -7 -7 -7 -6 -6 -6 -6 -6 -5 -5 -5 ------- Run | Yrd Mat Min Mat Min Mat Fac Low Low Zio Pro Fac Low Low Dat Pro Fac Ext Slots Evolved 10 | . . . 2 . 2 2 . . . . 2 . . . . 2 . Power 1 | . . . . . . . . . . . 1 . . . . . . Propulsion 2 | . . . 1 . . 1 . . . . . . . . . . . Utility 6 | . . . . . 2 1 . . . . 1 . . . . 2 . Weapon 1 | . . . 1 . . . . . . . . . . . . . . Parts Attached 139 | 7 4 4 23 1 27 22 . 3 2 . 9 1 7 . 2 18 9 Power 18 | 1 1 . 3 . 4 2 . . . . 1 1 1 . . 3 1 Engine 14 | 1 1 . 3 . 1 2 . . . . 1 1 1 . . 3 . Core 4 | . . . . . 3 . . . . . . . . . . . 1 Reactor . | . . . . . . . . . . . . . . . . . . Propulsion 46 | 2 1 2 7 . 11 6 . 1 . . 1 . 4 . . 5 6 Treads 35 | . . 2 7 . 11 6 . 1 . . 1 . 4 . . . 3 Leg 11 | 2 1 . . . . . . . . . . . . . . 5 3 Wheel . | . . . . . . . . . . . . . . . . . . Hover . | . . . . . . . . . . . . . . . . . . Flight . | . . . . . . . . . . . . . . . . . . Utility 36 | 2 2 . 5 1 6 7 . 1 . . 2 . 2 . 1 6 1 Device 18 | 1 1 . 2 1 4 3 . . . . . . 1 . . 5 . Storage 4 | 1 1 . 2 . . . . . . . . . . . . . . Processor 10 | . . . 1 . 2 3 . . . . 2 . 1 . . 1 . Hackware . | . . . . . . . . . . . . . . . . . . Protection 4 | . . . . . . 1 . 1 . . . . . . 1 . 1 Artifact . | . . . . . . . . . . . . . . . . . . Weapon 39 | 2 . 2 8 . 6 7 . 1 2 . 5 . . . 1 4 1 Energy Gun 17 | . . . 4 . 4 4 . . . . 3 . . . . 2 . Energy Cannon 6 | . . . 1 . 1 1 . . . . 2 . . . . 1 . Ballistic Gun 9 | 2 . 2 2 . . . . . . . . . . . 1 1 1 Ballistic Cannon . | . . . . . . . . . . . . . . . . . . Launcher 4 | . . . 1 . . 1 . 1 1 . . . . . . . . Special Weapon . | . . . . . . . . . . . . . . . . . . Impact Weapon . | . . . . . . . . . . . . . . . . . . Slashing Weapon 2 | . . . . . 1 1 . . . . . . . . . . . Piercing Weapon 1 | . . . . . . . . . 1 . . . . . . . . Special Melee Weapon . | . . . . . . . . . . . . . . . . . . Unidentified Prototypes 9 | . . . 4 1 2 . . . 1 . . . . . . 1 . Corrupted Parts 5 | . . . . . . . . . . . . . . . . 5 . System Corruption 36 | . . . . . . . . . . . . . . . . 36 . Parts Lost 57 | . 1 . 1 . 14 1 . 2 . . 1 1 11 . 1 14 10 Power 9 | . . . . . 3 . . . . . . 1 2 . . 2 1 Propulsion 22 | . . . . . 5 . . 1 . . 1 . 5 . . 4 6 Utility 13 | . 1 . . . 2 1 . 1 . . . . 1 . 1 4 2 Weapon 13 | . . . 1 . 4 . . . . . . . 3 . . 4 1 Highest Loss Streak 11 | . 1 . 1 . 2 1 . 1 . . 1 1 10 . 1 11 4 To Critical Strikes . | . . . . . . . . . . . . . . . . . . Average Backups 17 | 2 6 10 18 19 18 19 20 19 20 20 19 19 17 15 13 14 19 Power 1 | . 1 1 2 2 1 1 1 1 1 1 1 1 1 2 2 1 2 Propulsion 4 | . 2 2 5 6 5 6 5 4 4 4 3 4 2 . . . 4 Utility 7 | . . 2 5 6 7 6 8 8 9 9 9 10 9 9 8 8 7 Weapon 4 | . 2 3 5 5 3 5 6 6 6 6 5 4 3 4 3 3 5 Tool/Special . | . . . . . . . . . . . . . . . . . . Unused Backups 42 | . 1 . 13 1 12 2 . . 1 . . . . . . . 12 Power 8 | . 1 . 3 . 2 . . . . . . . . . . . 2 Propulsion 9 | . . . 3 . 3 . . . . . . . . . . . 3 Utility 12 | . . . 2 1 5 . . . . . . . . . . . 4 Weapon 13 | . . . 5 . 2 2 . . 1 . . . . . . . 3 Tool/Special . | . . . . . . . . . . . . . . . . . . Average Slot Usage (%) 95 | . 96 100 98 100 95 98 100 99 99 100 99 99 92 66 73 82 88 Engine 8 | . 14 14 11 11 1 6 7 7 7 7 13 12 11 6 6 7 5 Core 1 | . . . . . 7 . . . . . . . . . . . 4 Treads 24 | . . 17 32 33 26 28 30 29 30 30 25 25 23 20 20 11 3 Leg 3 | . 27 10 . . . . . . . . . . . . . 4 15 Device 13 | . 10 14 10 11 16 14 14 14 15 14 12 12 12 13 12 17 12 Storage 8 | . 14 14 11 11 9 7 7 7 7 7 6 6 6 6 6 5 5 Processor 10 | . . . . . 6 14 15 15 15 15 19 20 20 20 20 18 23 Energy Gun 15 | . . . 21 22 16 19 21 19 15 21 18 19 16 . 5 4 10 Energy Cannon 1 | . . . . . 5 1 1 3 . . 1 . . . . 3 . Ballistic Gun 5 | . 28 28 11 10 4 . . . . . . . . . . 5 . Peak Build Rating 87 | 7 10 11 21 27 30 48 50 51 50 51 60 60 65 43 51 78 87 Average Rating 39 | 5 8 10 19 20 26 41 48 48 48 48 56 56 54 43 46 62 78 On Entrance 37 | . 7 10 11 20 21 29 46 48 49 49 49 57 57 46 43 51 78 Naked Turns . | . . . . . . . . . . . . . . . . . . Heaviest Build 104 | 13 20 21 97 58 63 78 73 76 69 82 86 86 85 57 66 104 93 Greatest Support 102 | 20 20 40 60 60 60 94 94 94 94 94 94 94 102 70 70 70 84 Greatest Overweight (x) 20 | 3 . . 1 . 1 1 . . . . . 1 1 . . 20 2 Average Overweight (x) . | . . . . . . . . . . . . . . . . . 1 Largest Inventory Capacity 25 | 8 10 10 25 20 20 20 20 20 20 20 20 20 20 20 20 20 20 Average Capacity 19 | 7 8 10 19 20 20 20 20 20 20 20 20 20 20 20 20 20 20 Most Carried 20 | 4 10 10 20 20 20 20 20 20 20 20 20 20 20 15 15 20 20 Average Carried 17 | 2 6 9 18 19 18 19 20 19 19 20 19 19 17 15 13 14 19 Final Capacity 20 | 8 10 10 20 20 20 20 20 20 20 20 20 20 20 20 20 20 20 Final Carried 20 | 4 10 10 19 19 20 20 20 20 20 20 20 19 14 15 13 20 17 Class Distribution -------------------- 21% | Gunner 21% | Skirmisher 17% | Scavenger-Gunner 14% | Scavenger-Mutant 8% | Mutant 7% | Assassin 3% | Scavenger-Skirmisher Dominant Class ---------------- Mutant | -10/Materials Scavenger-Mutant | -10/Mines Scavenger-Gunner | -9/Materials Gunner | -9/Mines Scavenger-Gunner | -8/Materials Scavenger-Skirmisher | -7/Factory Skirmisher | -7/Lower Caves Skirmisher | -7/Lower Caves Assassin | -7/Zion Skirmisher | -6/Proximity Caves Skirmisher | -6/Factory Skirmisher | -6/Lower Caves Skirmisher | -6/Lower Caves Mutant | -6/Data Miner Mutant | -5/Proximity Caves Infiltrator-Gunner | -5/Factory Scavenger-Mutant | -5/Extension Resources | -11 -10 -10 -9 -9 -8 -7 -7 -7 -7 -6 -6 -6 -6 -6 -5 -5 -5 ----------- Run | Yrd Mat Min Mat Min Mat Fac Low Low Zio Pro Fac Low Low Dat Pro Fac Ext Matter Collected 5248 | 300 197 210 574 106 491 826 66 343 91 95 435 40 367 . 49 730 328 Remotely . | . . . . . . . . . . . . . . . . . . Salvage Created 11018 | 101 368 143 1245 325 2658 1048 . 569 . 125 740 40 876 . 183 1610 987 Parts 483 | 6 24 13 84 14 116 49 . 11 . 7 22 2 25 . 6 73 31 Haulers Intercepted 13 | . 1 . 6 . 4 . . . . . 1 . . . . 1 . Recyclers Shooed 8 | . . . 3 . . 1 . . . . 2 . . . . . 2 Parts Field Recycled . | . . . . . . . . . . . . . . . . . . Retrieved Matter . | . . . . . . . . . . . . . . . . . . Parts Self-Destructed 48 | . . . . . . . . 8 . 7 . 7 23 . 3 . . Prevented . | . . . . . . . . . . . . . . . . . . Kills | -11 -10 -10 -9 -9 -8 -7 -7 -7 -7 -6 -6 -6 -6 -6 -5 -5 -5 ------- Run | Yrd Mat Min Mat Min Mat Fac Low Low Zio Pro Fac Low Low Dat Pro Fac Ext Combat Hostiles Destroyed 193 | . 8 5 16 9 38 21 . 17 . 6 6 2 19 . 7 24 15 Melee 2 | . . . . . . 2 . . . . . . . . . . . Guns 124 | . 8 5 14 9 27 10 . 4 . 2 4 2 15 . . 13 11 Cannons 22 | . . . . . 11 2 . . . . 1 . 1 . . 6 1 AOE 30 | . . . 2 . . 3 . 12 . 4 . . 2 . 7 . . Classes Destroyed 20 | 2 6 . 3 . 3 1 . 1 . . 1 1 1 . . . 1 Worker 8 | . 1 . 1 . 1 1 . . . . 3 . . . . . 1 Builder 15 | . 1 . 2 . 2 7 . . . . . . . . . . 3 Tunneler 2 | 1 . . . 1 . . . . . . . . . . . . . Hauler 13 | . 1 . 6 . 4 . . . . . 1 . . . . 1 . Recycler 11 | 1 . . 3 2 3 . . . . . 1 . . . . . 1 Mechanic 3 | . . . 1 . . . . 1 . . . . . . . 1 . Operator 4 | . 1 . . . 2 1 . . . . . . . . . . . Watcher 14 | . . . 3 . 5 2 . . . . 3 . . . . 1 . Swarmer 38 | . 3 3 5 7 . 4 . 1 . 4 . . 3 . 4 4 . Grunt 92 | . 5 2 4 2 24 8 . 11 . 1 1 . 11 . 3 15 5 Brawler 5 | . . . . . 2 1 . 2 . . . . . . . . . Duelist 4 | . . . . . . . . 1 . . . . 3 . . . . Protector 1 | . . . . . . . . . . . . . 1 . . . . Sentry 32 | . . . 7 . 9 4 . 2 . . 2 . 1 . . . 7 Specialist 1 | . . . . . . . . . . . 1 . . . . . . Hunter 7 | . . . . . 2 . . . . . 1 . . . . 2 2 Programmer 9 | . . . . . . 4 . . . 1 1 1 . . . 2 . Heavy 2 | . . . . . 1 . . . . . . . . . . 1 . Behemoth 1 | . . . . . . . . . . . . . . . . . 1 Thief 1 | . . . . . . . . . . . . 1 . . . . . Thug 2 | . . . . . . . . . . . 1 . . . . . 1 Best Kill Streak 8 | 2 2 2 3 6 4 7 . 8 . 4 4 1 8 . 4 7 4 Combat Bots Only 8 | . 2 2 3 4 4 4 . 8 . 4 1 1 8 . 4 7 3 Max Kills in Single Turn 4 | 1 1 1 2 2 1 3 . 4 . 4 1 1 2 . 4 2 2 Gunslinging 1 | . . . . 1 . . . . . . . . . . . . . Exploded 4 | . . . 2 . . 2 . 4 . 4 . . 2 . 4 . . Melee 1 | . . . . . . 1 . . . . . . . . . . . Uniques/NPCs Destroyed . | . . . . . . . . . . . . . . . . . . Combat | -11 -10 -10 -9 -9 -8 -7 -7 -7 -7 -6 -6 -6 -6 -6 -5 -5 -5 -------- Run | Yrd Mat Min Mat Min Mat Fac Low Low Zio Pro Fac Low Low Dat Pro Fac Ext Hostile Shots Fired 1056 | . 26 9 60 42 152 239 . 69 . 6 97 8 81 . 16 158 93 Missed 322 | . 9 3 19 4 54 81 . 28 . 1 39 2 14 . 4 38 26 Hits 734 | . 17 6 41 38 98 158 . 41 . 5 58 6 67 . 12 120 67 Melee 7 | . . . . . 1 1 . 1 . . . 1 2 . . . 1 Projectile 727 | . 17 6 41 38 97 157 . 40 . 5 58 5 65 . 12 120 66 Critical Strikes 17 | . . 1 . 1 1 1 . . . . . . . . . 8 5 Part Disruptions 1 | . . . . . . 1 . . . . . . . . . . . Damage Taken 11342 | . 219 87 526 325 1527 996 . 638 . 130 829 75 1247 . 325 2969 1449 Core 1718 | . . 14 111 24 145 53 . 54 . . 112 16 154 . 31 760 244 Absorbed by Shields 735 | . . . . . . 456 . . . 12 76 . 56 . . 32 103 Regen/Repaired (Parts) 1102 | . 57 . 298 . 206 166 . . . . 375 . . . . . . Core Remaining (%) 80 | 100 . 94 . 66 73 . . . . 84 . . . . 63 . . Volleys Fired 614 | 5 48 8 71 14 125 82 7 24 . 12 31 6 35 . 4 91 51 Largest 3 | 2 2 2 3 3 3 3 1 3 . 3 3 3 3 . 1 3 3 Hottest 250 | 40 40 43 135 135 180 240 65 240 . 240 240 240 250 . 90 200 230 Shots Fired 1370 | 10 96 16 207 42 367 159 8 42 . 16 67 14 91 . 4 137 94 Gun 1126 | 10 96 16 204 42 303 104 1 26 . 6 54 12 80 . . 84 88 Cannon 228 | . . . 2 . 64 53 7 8 . 9 13 2 10 . 1 53 6 Launcher 16 | . . . 1 . . 2 . 8 . 1 . . 1 . 3 . . Special . | . . . . . . . . . . . . . . . . . . Kinetic 367 | 10 96 16 83 14 78 . . . . . . . . . . 68 2 Thermal 931 | . . . 123 28 289 157 8 34 . 15 63 14 90 . 1 23 86 Explosive 16 | . . . 1 . . 2 . 8 . 1 . . 1 . 3 . . Electromagnetic 56 | . . . . . . . . . . . 4 . . . . 46 6 Robot Hit Streak 25 | 2 11 6 14 10 12 17 . 11 . 10 25 9 16 . 7 13 19 Robot Miss Streak 6 | 3 4 1 4 2 4 2 . 3 . 3 4 2 4 . 2 6 6 Penetration Max 1 | . . . . . . . . . . . . . . . . 1 . Secondary Targets 14 | . . . . 4 4 . . 1 . . 1 . 2 . . 2 . Max Gunslinging Chain 1 | . . . . 1 1 . . 1 . . 1 . 1 . . 1 . Shots Hit Robots 944 | 4 65 12 127 26 252 111 . 28 . 6 52 9 67 . 3 101 81 Core Hits 580 | 3 22 9 43 12 104 51 . 45 . 14 46 6 74 . 19 57 75 Critical Kills 1 | . . 1 . . . . . . . . . . . . . . . Critical Parts Destroyed . | . . . . . . . . . . . . . . . . . . Critical Strikes 34 | . . 1 4 4 17 7 . . . . 1 . . . . . . Burn 32 | . . . 4 4 17 7 . . . . . . . . . . . Destroy 1 | . . 1 . . . . . . . . . . . . . . . Corrupt 1 | . . . . . . . . . . . 1 . . . . . . Melee Attacks 22 | . . . . . 4 17 . . 1 . . . . . . . . Impact . | . . . . . . . . . . . . . . . . . . Slashing 22 | . . . . . 4 17 . . 1 . . . . . . . . Piercing . | . . . . . . . . . . . . . . . . . . Sneak Attacks 3 | . . . . . 2 1 . . . . . . . . . . . Combat Hostiles . | . . . . . . . . . . . . . . . . . . Follow-up Attacks . | . . . . . . . . . . . . . . . . . . Damage Inflicted 23984 | 51 804 166 2267 527 4626 3065 . 2050 . 412 1507 254 1868 . 739 2864 2784 Guns 16768 | 51 792 155 2133 512 3473 1741 . 479 . 111 1297 254 1598 . . 1561 2611 Cannons 3055 | . . . . . 964 355 . . . . 124 . 185 . . 1303 124 Explosions 3290 | . . . 117 . . 477 . 1571 . 301 . . 85 . 739 . . Melee 561 | . . . . . 141 420 . . . . . . . . . . . Ramming 310 | . 12 11 17 15 48 72 . . . . 86 . . . . . 49 Kinetic 3896 | 51 792 155 761 136 765 . . . . . . . . . . 1188 48 Thermal 14407 | . . . 1372 376 3672 2096 . 479 . 111 1297 254 1783 . . 404 2563 Explosive 3290 | . . . 117 . . 477 . 1571 . 301 . . 85 . 739 . . Electromagnetic 1520 | . . . . . . . . . . . 124 . . . . 1272 124 Impact . | . . . . . . . . . . . . . . . . . . Slashing 561 | . . . . . 141 420 . . . . . . . . . . . Piercing . | . . . . . . . . . . . . . . . . . . Highest Corruption 45 | . . . . . . 7 7 7 7 . . 1 1 1 1 40 45 Average Corruption 13 | . . . . . . 3 7 7 7 . . 1 1 1 1 16 40 Corruption Purged . | . . . . . . . . . . . . . . . . . . Corruption Blocked . | . . . . . . . . . . . . . . . . . . Effects 229 | . . . . . . 36 15 42 2 . . . 13 . . 26 95 Message Errors 52 | . . . . . . 10 5 8 . . . . 4 . . 6 19 Matter Fused 53 | . . . . . . 10 5 7 1 . . . 3 . . 6 21 Heat Flow Errors 32 | . . . . . . 7 1 5 . . . . 2 . . 1 16 Energy Discharges 23 | . . . . . . 3 1 6 . . . . 1 . . 3 9 Parts Rejected 6 | . . . . . . 1 . 1 . . . . . . . 2 2 Parts Fused 1 | . . . . . . . . 1 . . . . . . . . . Data Loss (minor) 22 | . . . . . . 2 1 5 1 . . . 1 . . 4 8 Data Loss (major) 11 | . . . . . . 1 . 5 . . . . . . . 2 3 Misfires 10 | . . . . . . . 1 2 . . . . 1 . . 1 5 Alerts 5 | . . . . . . . 1 . . . . . 1 . . . 3 Misdirections 2 | . . . . . . . . . . . . . . . . 1 1 Weapon Failures 12 | . . . . . . 2 . 2 . . . . . . . . 8 Overload Shots . | . . . . . . . . . . . . . . . . . . Overflow Damage 125 | . . . . . . 85 . 33 . . 1 . . . 6 . . Projectiles 12 | . . . . . . 11 . . . . 1 . . . . . . Explosions 39 | . . . . . . . . 33 . . . . . . 6 . . Melee 74 | . . . . . . 74 . . . . . . . . . . . Knockbacks 2 | . . . . . . . . . . . 2 . . . . . . Impact 2 | . . . . . . . . . . . 2 . . . . . . Kinetic . | . . . . . . . . . . . . . . . . . . Secondary . | . . . . . . . . . . . . . . . . . . Self-Inflicted Damage 187 | . . . . . . . . 40 . 20 . . . . 127 . . Shots 7 | . . . . . . . . 2 . 1 . . . . 4 . . Rammed 30 | . . 4 4 1 4 6 . . . . 10 . . . . . 1 Targets Rammed 38 | . 2 4 4 2 4 8 . . . . 11 . . . . . 3 Kicked 4 | . 2 . . . . . . . . . . . . . . . 2 Crushed 4 | . . . . 1 . 2 . . . . 1 . . . . . . Highest Temperature 508 | . 2 7 99 18 187 298 112 315 . 144 288 360 330 . 36 508 450 Average Temperature 82 | . 2 7 27 5 40 88 53 93 . 67 103 137 82 . 14 115 96 Received Heat Transfer 3057 | . 108 51 153 33 675 229 . 186 . . 148 . 409 . 39 738 288 Effects 9 | . . . . . . . . . . . . . 4 . . 3 2 Shutdowns 3 | . . . . . . . . . . . . . . . . 2 1 Energy Bleed 1 | . . . . . . . . . . . . . . . . . 1 Interference 4 | . . . . . . . . . . . . . 4 . . . . Damage (core) 1 | . . . . . . . . . . . . . . . . 1 . Siege Activations . | . . . . . . . . . . . . . . . . . . Martial Activations . | . . . . . . . . . . . . . . . . . . Shielding Activations . | . . . . . . . . . . . . . . . . . . Robots Disrupted . | . . . . . . . . . . . . . . . . . . Combat Hostiles . | . . . . . . . . . . . . . . . . . . Robots Corrupted 5 | . . . . . . . . . . . . . . . . 5 . Combat Hostiles 5 | . . . . . . . . . . . . . . . . 5 . Parts Fried 9 | . . . . . . . . . . . . . . . . 8 1 Impact Corruptions . | . . . . . . . . . . . . . . . . . . Robots Melted 10 | . . . . . . 4 . 1 . . 1 . 1 . . . 3 Combat Hostiles 10 | . . . . . . 4 . 1 . . 1 . 1 . . . 3 Parts Melted 75 | . . . 4 1 15 21 . . . . 12 3 15 . . 1 3 Heat Transferred 30973 | . . . 3404 1110 8695 4589 . 1100 . 225 2900 525 3300 . . 850 4275 Parts Sabotaged . | . . . . . . . . . . . . . . . . . . Parts Stolen 1 | . . . . . . . . . . . . 1 . . . . . Parts Stripped . | . . . . . . . . . . . . . . . . . . Power Chain Reactions . | . . . . . . . . . . . . . . . . . . Alert | -11 -10 -10 -9 -9 -8 -7 -7 -7 -7 -6 -6 -6 -6 -6 -5 -5 -5 ------- Run | Yrd Mat Min Mat Min Mat Fac Low Low Zio Pro Fac Low Low Dat Pro Fac Ext Maximum Alert Level 2 | . . . 1 . 1 1 . . . . 1 . . . . 2 1 Low Security (%) 85 | 100 100 100 69 100 84 98 . . . . 66 . . . . 75 88 Level 1 12 | . . . 30 . 15 1 . . . . 33 . . . . 7 11 Level 2 1 | . . . . . . . . . . . . . . . . 17 . Level 3 . | . . . . . . . . . . . . . . . . . . Level 4 . | . . . . . . . . . . . . . . . . . . Level 5 . | . . . . . . . . . . . . . . . . . . High Security . | . . . . . . . . . . . . . . . . . . Max Security . | . . . . . . . . . . . . . . . . . . Peak Influence 462 | 5 94 80 259 172 303 202 . . . . 282 . . . . 462 226 Initial 208 | . . . . 92 20 91 . . . . 74 . . . . . 208 Average 96 | . 20 18 162 23 133 64 . . . . 126 . . . . 127 97 Influence Increases 7117 | 10 252 171 1128 225 1233 711 . 370 . 326 551 30 430 . 160 844 676 Destroy 0b10 Robot/C 4420 | . 160 100 620 180 760 420 . 340 . 160 260 20 360 . 140 480 420 Destroy 0b10 Robot/NC 385 | 10 20 . 95 15 85 55 . 5 . . 45 . 5 . . 15 35 Destroy Leader 984 | . 42 20 192 30 228 124 . 10 . 30 100 10 30 . 20 104 44 Allied During Kill 501 | . . 21 142 . . . . . . 136 109 . 5 . . . 88 Successful Hack 143 | . 13 . 11 . 28 71 . . . . 3 . . . . 17 . Disable Machine 180 | . . 15 60 . 45 15 . . . . 15 . . . . 30 . Destroy Structure 84 | . 2 . 8 . 12 26 . . . . 4 . . . . 18 14 Partial Spotted 30 | . 15 . . . . . . . . . 15 . . . . . . Lose Combat Pursuer 390 | . . 15 . . 75 . . 15 . . . . 30 . . 180 75 Influence Decreases 6942 | 10 252 171 891 410 1084 716 196 224 146 207 480 220 430 . 160 417 928 Entered New Map 841 | . . . . 145 32 110 73 . 146 . 45 71 . . . . 219 Time Decay 4750 | 10 252 171 631 265 661 451 123 204 . 187 385 149 335 . 160 277 489 Lost Part 505 | . . . 10 . 140 10 . 20 . . 10 . 75 . . 140 100 Lost Ally 300 | . . . 100 . . . . . . 20 40 . 20 . . . 120 Purge Threat 546 | . . . 150 . 251 145 . . . . . . . . . . . Squads Dispatched 34 | . 1 . 1 . 6 6 . 1 . . 7 . 1 . . 9 2 Investigation 5 | . . . . . 2 1 . . . . 1 . . . . 1 . Extermination 6 | . . . . . . 4 . . . . 1 . . . . 1 . Reinforcement 15 | . 1 . 1 . 4 1 . . . . 3 . . . . 3 2 Assault 5 | . . . . . . . . 1 . . 2 . 1 . . 1 . Garrison 3 | . . . . . . . . . . . . . . . . 3 . Intercept . | . . . . . . . . . . . . . . . . . . Searches Triggered . | . . . . . . . . . . . . . . . . . . Data Miner Redirects 3 | . . . . . . . . . . . . . . . . 3 . Construction Impeded 1 | . . . . . . . . . . . . . . . . . 1 Haulers Reinforced . | . . . . . . . . . . . . . . . . . . Active Scanning Responses . | . . . . . . . . . . . . . . . . . . Cargo Convoy Interrupts 1 | . . . . . . . . . . . . . . . . 1 . Stealth | -11 -10 -10 -9 -9 -8 -7 -7 -7 -7 -6 -6 -6 -6 -6 -5 -5 -5 --------- Run | Yrd Mat Min Mat Min Mat Fac Low Low Zio Pro Fac Low Low Dat Pro Fac Ext Distress Signals 15 | . 2 . 6 . 3 . . . . . . . . . . 4 . Communications Jammed 18 | . . . . . . . . . . . . . . . . 18 . Distress Signals 17 | . . . . . . . . . . . . . . . . 17 . Times Spotted 309 | . 20 8 39 9 56 27 . 18 . 8 16 2 25 . 7 45 29 Peak Tracking Total 9 | . 4 3 6 4 7 4 . 7 . 4 4 1 9 . 4 9 6 Tactical Retreats 18 | . . 1 . . 5 . . 1 . . . . 2 . . 6 3 Traps | -11 -10 -10 -9 -9 -8 -7 -7 -7 -7 -6 -6 -6 -6 -6 -5 -5 -5 ------- Run | Yrd Mat Min Mat Min Mat Fac Low Low Zio Pro Fac Low Low Dat Pro Fac Ext Traps Triggered 6 | . . . . . . 1 . . . . 1 . . . . . 4 Indirectly . | . . . . . . . . . . . . . . . . . . Trap Hack Attempts . | . . . . . . . . . . . . . . . . . . Triggered . | . . . . . . . . . . . . . . . . . . Disarmed . | . . . . . . . . . . . . . . . . . . Reprogrammed . | . . . . . . . . . . . . . . . . . . Reused . | . . . . . . . . . . . . . . . . . . Traps Extracted . | . . . . . . . . . . . . . . . . . . Installed . | . . . . . . . . . . . . . . . . . . Triggered . | . . . . . . . . . . . . . . . . . . Machines | -11 -10 -10 -9 -9 -8 -7 -7 -7 -7 -6 -6 -6 -6 -6 -5 -5 -5 ---------- Run | Yrd Mat Min Mat Min Mat Fac Low Low Zio Pro Fac Low Low Dat Pro Fac Ext Machines Disabled 13 | . . 1 4 . 3 1 . 1 . . 1 . . . . 2 . Max in Single Turn 1 | . . . 1 . 1 1 . 1 . . . . . . . 1 . Garrison Access 4 | . . . . . 1 . . . . . 2 . . . . 1 . Machines Repaired . | . . . . . . . . . . . . . . . . . . Machines Dismantled . | . . . . . . . . . . . . . . . . . . Machines Sabotaged . | . . . . . . . . . . . . . . . . . . Overloaded Fab Kills . | . . . . . . . . . . . . . . . . . . Hacking | -11 -10 -10 -9 -9 -8 -7 -7 -7 -7 -6 -6 -6 -6 -6 -5 -5 -5 --------- Run | Yrd Mat Min Mat Min Mat Fac Low Low Zio Pro Fac Low Low Dat Pro Fac Ext Machines Accessed 74 | . 9 1 16 . 16 13 . 1 1 . 8 . . 4 . 4 1 Terminals 42 | . 7 . 11 . 10 5 . . . . 5 . . . . 3 1 Fabricators 3 | . . . . . . 3 . . . . . . . . . . . Repair Stations 9 | . 1 . 2 . 2 2 . . . . 2 . . . . . . Recycling Units 7 | . 1 . 2 . 1 3 . . . . . . . . . . . Scanalyzers 3 | . . . 1 . 2 . . . . . . . . . . . . Garrison Access 3 | . . . . . 1 . . . . . 1 . . . . 1 . Total Hacks 209 | . 20 1 43 . 48 33 . 1 5 . 22 . . 29 . 6 1 Successful 119 | . 10 1 18 . 25 15 . 1 5 . 11 . . 29 . 4 . Failed 90 | . 10 . 25 . 23 18 . . . . 11 . . . . 2 1 Catastrophic 16 | . . . 6 . 2 3 . . . . 5 . . . . . . Database Lockouts . | . . . . . . . . . . . . . . . . . . Manual 63 | . 8 . 19 . 16 6 . . 1 . 12 . . . . 1 . Terminals 98 | . 16 . 25 . 26 13 . . . . 12 . . . . 5 1 Fabricators 4 | . . . . . . 4 . . . . . . . . . . . Repair Stations 37 | . 3 . 7 . 9 10 . . . . 8 . . . . . . Recycling Units 16 | . 1 . 6 . 3 6 . . . . . . . . . . . Scanalyzers 14 | . . . 5 . 9 . . . . . . . . . . . . Garrison Access 4 | . . . . . 1 . . . . . 2 . . . . 1 . Terminal Hacks 57 | . 5 1 3 . 7 4 . 1 5 . . . . 29 . 2 . Record 11 | . . . . . . . . . . . . . . 11 . . . Part Schematic 16 | . . . . . . . . . 5 . . . . 11 . . . Robot Schematic 4 | . . . . . . . . . . . . . . 4 . . . Prototype ID Bank 3 | . . . . . . . . . . . . . . 3 . . . Open Door 3 | . . 1 . . . . . 1 . . . . . . . 1 . Branch Access Points 4 | . 1 . 1 . 1 1 . . . . . . . . . . . Unreport Threat 4 | . . . 1 . 2 1 . . . . . . . . . . . Locate Traps 5 | . 2 . . . 1 1 . . . . . . . . . 1 . Recall Investigation 1 | . . . . . 1 . . . . . . . . . . . . Hauler Manifests 2 | . 1 . 1 . . . . . . . . . . . . . . Registered Components 1 | . . . . . 1 . . . . . . . . . . . . Zone Layout 3 | . 1 . . . 1 1 . . . . . . . . . . . Fabricator Hacks 1 | . . . . . . 1 . . . . . . . . . . . Network Status 1 | . . . . . . 1 . . . . . . . . . . . Repair Station Hacks 31 | . 2 . 6 . 8 7 . . . . 8 . . . . . . Scan Component 16 | . 1 . 3 . 4 4 . . . . 4 . . . . . . Repair 15 | . 1 . 3 . 4 3 . . . . 4 . . . . . . Recycling Unit Hacks 5 | . 1 . 2 . 1 1 . . . . . . . . . . . Retrieve Components 5 | . 1 . 2 . 1 1 . . . . . . . . . . . Scanalyzer 9 | . . . 4 . 5 . . . . . . . . . . . . Insert Component 4 | . . . 2 . 2 . . . . . . . . . . . . Analyze 5 | . . . 2 . 3 . . . . . . . . . . . . Garrison Access Hacks 3 | . . . . . 1 . . . . . 1 . . . . 1 . Seal Access 3 | . . . . . 1 . . . . . 1 . . . . 1 . Unauthorized Hacks 13 | . 2 . 3 . 3 2 . . . . 2 . . . . 1 . Terminals 12 | . 2 . 3 . 3 1 . . . . 2 . . . . 1 . Track 1 | . . . . . . . . . . . . . . . . 1 . Botnet 11 | . 2 . 3 . 3 1 . . . . 2 . . . . . . Fabricators 1 | . . . . . . 1 . . . . . . . . . . . Liberate 1 | . . . . . . 1 . . . . . . . . . . . Repair Stations . | . . . . . . . . . . . . . . . . . . Recycling Units . | . . . . . . . . . . . . . . . . . . Scanalyzers . | . . . . . . . . . . . . . . . . . . Garrison Access . | . . . . . . . . . . . . . . . . . . Data Cores Recovered 2 | . 1 . . . 1 . . . . . . . . . . . . Used . | . . . . . . . . . . . . . . . . . . Hacking Detections 59 | . 7 . 15 . 15 12 . . . . 7 . . . . 2 1 Full Trace Events 6 | . . . 1 . 2 1 . . . . 1 . . . . 1 . Feedback Events 1 | . . . . . . 1 . . . . . . . . . . . Corruption 1 | . . . . . . 1 . . . . . . . . . . . Feedback Blocked . | . . . . . . . . . . . . . . . . . . Robot Schematics Acquired 7 | . . . . . . . . . 3 . . . . 4 . . . Robots Built . | . . . . . . . . . . . . . . . . . . Authchips . | . . . . . . . . . . . . . . . . . . Time . | . . . . . . . . . . . . . . . . . . Total Robot Build Rating . | . . . . . . . . . . . . . . . . . . Part Schematics Acquired 34 | . . . 2 . . . . . 21 . . . . 11 . . . Parts Built . | . . . . . . . . . . . . . . . . . . Authchips . | . . . . . . . . . . . . . . . . . . Time . | . . . . . . . . . . . . . . . . . . Total Part Build Rating . | . . . . . . . . . . . . . . . . . . Parts Repaired 15 | . 1 . 3 . 4 3 . . . . 4 . . . . . . Time 602 | . 26 . 115 . 235 86 . . . . 140 . . . . . . Parts Recycled . | . . . . . . . . . . . . . . . . . . Recycled Matter . | . . . . . . . . . . . . . . . . . . Retrieved Matter . | . . . . . . . . . . . . . . . . . . Retrieved Components 26 | . 5 . 11 . 9 1 . . . . . . . . . . . Parts Scanalyzed 3 | . . . 2 . 1 . . . . . . . . . . . . Part Schematics Acquired 2 | . . . 2 . . . . . . . . . . . . . . Parts Damaged . | . . . . . . . . . . . . . . . . . . Bothacking | -11 -10 -10 -9 -9 -8 -7 -7 -7 -7 -6 -6 -6 -6 -6 -5 -5 -5 ------------ Run | Yrd Mat Min Mat Min Mat Fac Low Low Zio Pro Fac Low Low Dat Pro Fac Ext Used RIF Installer . | . . . . . . . . . . . . . . . . . . Robots Hacked . | . . . . . . . . . . . . . . . . . . Non-combat . | . . . . . . . . . . . . . . . . . . Combat . | . . . . . . . . . . . . . . . . . . Robot Hacks Applied . | . . . . . . . . . . . . . . . . . . Relay Couplers Released 2 | . . . . . . . . . . . 2 . . . . . . Machine Destruction 2 | . . . . . . . . . . . 2 . . . . . . Fabnet Peak Effective % . | . . . . . . . . . . . . . . . . . . Robots Rewired 10 | . . . . . . . . . . . . . 2 . . . 8 Allies Hacked . | . . . . . . . . . . . . . . . . . . Hacks Repelled . | . . . . . . . . . . . . . . . . . . Allies | -11 -10 -10 -9 -9 -8 -7 -7 -7 -7 -6 -6 -6 -6 -6 -5 -5 -5 -------- Run | Yrd Mat Min Mat Min Mat Fac Low Low Zio Pro Fac Low Low Dat Pro Fac Ext Total Allies 25 | . . 5 . . . . . . 6 . . . 2 . . . 12 Largest Group 7 | . . 5 5 . . . . . 6 6 4 . 2 . . . 7 Highest-Rated Group 288 | . . 90 90 . . . . . 288 288 254 . 49 . . . 274 Highest-Rated Ally 159 | . . 31 31 . . . . . 96 96 96 . 29 . . . 159 Total Orders . | . . . . . . . . . . . . . . . . . . Ally Attacks 231 | . . 8 82 . . . . . . 27 18 . 11 . . . 85 Total Damage 4056 | . . 64 977 . . . . . . 605 677 . 185 . . . 1548 Kills 37 | . . . 18 . . . . . . 2 8 . . . . . 9 Allies Corrupted 1 | . . . . . . . . . . . . . . . . . 1 Allies Melted 1 | . . . . . . . . . . . . . 1 . . . . Intel | -11 -10 -10 -9 -9 -8 -7 -7 -7 -7 -6 -6 -6 -6 -6 -5 -5 -5 ------- Run | Yrd Mat Min Mat Min Mat Fac Low Low Zio Pro Fac Low Low Dat Pro Fac Ext Active Infowar (turns) 9967 | 27 113 . . 3 . 1890 403 1187 1733 351 1133 382 679 137 410 1508 11 Sensors 9456 | . . . . 3 . 1883 403 1181 1733 345 1127 372 675 137 388 1198 11 Structural 9190 | . . . . . . 1693 401 1184 1733 346 1059 380 673 137 408 1166 10 Seismic 140 | 27 113 . . . . . . . . . . . . . . . . Jamming 1326 | . . . . . . . . . . . . . . . . 1326 . Robot Analysis Total . | . . . . . . . . . . . . . . . . . . Derelict Logs Recovered 13 | . . 3 . 1 . . 1 3 1 . . . 2 . 2 . . Drone Launches . | . . . . . . . . . . . . . . . . . . Drone Recoveries . | . . . . . . . . . . . . . . . . . . Exploration | -11 -10 -10 -9 -9 -8 -7 -7 -7 -7 -6 -6 -6 -6 -6 -5 -5 -5 ------------- Run | Yrd Mat Min Mat Min Mat Fac Low Low Zio Pro Fac Low Low Dat Pro Fac Ext Turns Passed 22711 | 124 935 856 2916 2321 2844 2331 403 1290 1733 391 1279 397 910 137 419 1665 1760 Spaces Moved 10611 | 69 580 569 1480 637 1189 1087 241 742 1059 196 579 228 430 87 238 531 669 Core 14 | 13 . . . . . . . . . . . . . . . 1 . Treads 9049 | . . 326 1480 637 1189 1087 241 742 1059 196 579 228 430 87 238 396 134 Legs 1548 | 56 580 243 . . . . . . . . . . . . . 134 535 Wheels . | . . . . . . . . . . . . . . . . . . Hover . | . . . . . . . . . . . . . . . . . . Flight . | . . . . . . . . . . . . . . . . . . Fastest Speed 50 | 50 120 120 160 160 160 160 160 160 160 160 160 160 158 158 158 158 166 Average Speed 163 | 131 120 142 160 160 166 164 160 160 160 160 160 160 163 158 158 213 208 Slowest Speed 1050 | 200 120 160 240 160 240 240 160 160 160 160 160 240 238 158 158 1050 260 Overloaded Moves . | . . . . . . . . . . . . . . . . . . Propulsion Burnouts . | . . . . . . . . . . . . . . . . . . Robots Hopped . | . . . . . . . . . . . . . . . . . . Potential Cave-ins . | . . . . . . . . . . . . . . . . . . Cave-ins Triggered . | . . . . . . . . . . . . . . . . . . Exploration Rate (%) 61 | 5 95 96 98 99 97 26 51 83 86 41 26 47 57 69 38 18 68 Regions Visited 17 Branch Regions 11 Pre-discovered Areas 6 | . . 2 . 2 . . . . . . . . 1 1 . . . Known Exits Taken 14 | . 1 . 1 1 . 1 1 1 1 1 1 1 1 1 1 1 . Unknown Exits Taken 3 | 1 . 1 . . 1 . . . . . . . . . . . . Scrap Searched 16 | . . 1 . 1 . . 1 3 4 2 . . 3 . 1 . . Spaces Dug 37 | . . . . . 2 15 2 2 . 3 4 2 2 . 1 4 . Terrain Destroyed 256 | . . . 4 . 9 25 2 51 . 30 4 2 41 . 84 4 . Melee 9 | . . . . . 2 7 . . . . . . . . . . . Projectile 40 | . . . . . 7 11 2 2 . 3 4 2 4 . 1 4 . AOE 207 | . . . 4 . . 7 . 49 . 27 . . 37 . 83 . . Terrain Rammed . | . . . . . . . . . . . . . . . . . . Walls Destroyed . | . . . . . . . . . . . . . . . . . . Machines Disabled . | . . . . . . . . . . . . . . . . . . Actions | -11 -10 -10 -9 -9 -8 -7 -7 -7 -7 -6 -6 -6 -6 -6 -5 -5 -5 --------- Run | Yrd Mat Min Mat Min Mat Fac Low Low Zio Pro Fac Low Low Dat Pro Fac Ext Total 14613 | 89 722 594 1864 1906 1769 1425 250 793 1096 248 847 243 541 87 272 947 920 Wait 2682 | 5 76 3 217 1247 366 128 . 5 26 24 172 . 28 . 15 266 104 Move 10594 | 68 579 568 1479 636 1188 1086 240 741 1058 195 578 227 429 86 237 530 669 Hop . | . . . . . . . . . . . . . . . . . . Pick Up 111 | 4 8 2 28 . 26 11 . 2 2 . 9 . 2 . . 13 4 Fast Attach 104 | 7 4 3 20 2 19 13 . 1 3 . 6 2 1 . 1 14 8 Attach 52 | . . . 2 . 8 6 . 2 . . 3 1 8 . 5 12 5 Detach 13 | . . . . 1 . 1 . . . . . . 1 1 3 6 . Swap 198 | . 1 1 11 2 5 58 3 18 1 17 29 6 21 . 7 15 3 Drop 101 | . 4 5 32 2 24 15 . . 5 . 8 1 1 . . . 4 Fire 614 | 5 48 8 71 14 125 82 7 24 . 12 31 6 35 . 4 91 51 Melee 22 | . . . . . 4 17 . . 1 . . . . . . . . Ram . | . . . . . . . . . . . . . . . . . . Kick 4 | . 2 . . . . . . . . . . . . . . . 2 Crush 34 | . . 4 4 2 4 8 . . . . 11 . . . . . 1 Escape Stasis 17 | . . . . . . . . . . . . . . . . . 17 Rewire 67 | . . . . . . . . . . . . . 15 . . . 52 Trap . | . . . . . . . . . . . . . . . . . . Miscellaneous . | . . . . . . . . . . . . . . . . . . Route ------- -11/Scrapyard -10/Materials (discovered 6 exits: *Mat x3 / *Min x2 / [*Sub]) -10/Mines (discovered 2 exits: *Mat x2) -9/Materials (discovered 4 exits: *Mat x3 / *Min) -9/Mines (discovered 4 exits: *Mat x2 / [*Exi] / *Zio) -8/Materials (discovered 3 exits: *Fac x3) -7/Factory (discovered 3 exits: *Sto / *Low x2) -7/Lower Caves -7/Lower Caves (discovered 2 exits: *Fac / *Zio) -7/Zion -6/Proximity Caves -6/Factory (discovered 3 exits: *Fac x2 / *Low) -6/Lower Caves -6/Lower Caves -6/Data Miner -5/Proximity Caves -5/Factory (discovered 3 exits: Fac / *Upp / *Ext) -5/Extension History --------- Turn | Location | Event 24 | -11/Scrapyard | Discovered new exit (range 16) 125 | -11/Scrapyard | Entered Materials 213 | -10/Materials | Discovered new exit (range 8) 260 | -10/Materials | Discovered new exit (range 13) 313 | -10/Materials | Build established: Mutant 354 | -10/Materials | Discovered new exit (range 13) 359 | -10/Materials | Identified exit to Mines 596 | -10/Materials | Discovered new exit (range 15) 792 | -10/Materials | Repaired Aluminum Leg 799 | -10/Materials | Discovered new exit (range 13) 1060 | -10/Materials | Build established: Scavenger-Mutant 1060 | -10/Materials | Entered Mines 1124 | -10/Mines | Discovered new exit (range 15) 1148 | -10/Mines | Found the Drone Emporium 1227 | -10/Mines | A weapon hastily lodged in a ceiling crevice suddenly fell to the ground 1240 | -10/Mines | Assisted by bots powering up and referring to "LRC-V3" 1264 | -10/Mines | Discovered new exit (range 10) 1294 | -10/Mines | Learned location of Mines (-9) 1352 | -10/Mines | Learned location of Mines (-8) 1352 | -10/Mines | Joined a pair of Derelicts in attacking an 0b10 outpost 1435 | -10/Mines | Learned Materials trap positions 1443 | -10/Mines | Found a hidden stash of uninstalled traps 1916 | -10/Mines | Entered Materials 1916 | -9/Materials | Accompanied by 5 allies 1916 | -9/Materials | Evolved 2 slots: Propulsion x1, Weapon x1 1917 | -9/Materials | Loaded intel: 18 trap records 1921 | -9/Materials | Led the pair of lost Derelicts to an unsafe place 2232 | -9/Materials | Build established: Scavenger-Gunner 2814 | -9/Materials | Discovered new exit (range 3) 2978 | -9/Materials | Discovered new exit (range 16) 3140 | -9/Materials | Discovered new exit (range 16) 3732 | -9/Materials | Discovered new exit (range 12) 3806 | -9/Materials | Repaired Hcp. Storage Unit 3912 | -9/Materials | Repaired Imp. Heat Sink 3964 | -9/Materials | Repaired Imp. Medium Laser 4358 | -9/Materials | Build established: Gunner 4460 | -9/Materials | Identified exit to Materials 4654 | -9/Materials | Identified exit to Mines 4832 | -9/Materials | Entered Mines 4847 | -9/Mines | Discovered exit to Materials (range 5) 4898 | -9/Mines | Assembled infested the area 6264 | -9/Mines | Learned location of Storage (-7) 6368 | -9/Mines | Discovered new exit (range 5) 6514 | -9/Mines | Found a damaged Exp. Sensor Array with a note attached 6518 | -9/Mines | Found Prototype Device 6518 | -9/Mines | Identified Exp. Sensor Array 6642 | -9/Mines | Received a Rocket Launcher from a helpful Derelict 6665 | -9/Mines | A Derelict revealed a hidden shortcut to a safe place 7106 | -9/Mines | Discovered exit to Materials (range 10) 7153 | -9/Mines | Entered Materials 7153 | -8/Materials | Evolved 2 slots: Utility x2 7621 | -8/Materials | Build established: Scavenger-Gunner 8151 | -8/Materials | Build established: Gunner 8522 | -8/Materials | Repaired Arm. Treads 8631 | -8/Materials | Repaired Exp. Sensor Array 9001 | -8/Materials | Discovered new exit (range 4) 9126 | -8/Materials | Build established: Scavenger-Gunner 9178 | -8/Materials | Discovered new exit (range 15) 9461 | -8/Materials | Repaired Hardlight Generator 9513 | -8/Materials | Repaired Imp. Medium Laser 9546 | -8/Materials | Discovered new exit (range 16) 9997 | -8/Materials | Entered Factory 9997 | -7/Factory | Evolved 2 slots: Propulsion x1, Utility x1 10090 | -7/Factory | Discovered new exit (range 15) 10178 | -7/Factory | Identified exit to Storage 10831 | -7/Factory | Repaired Lgt. Treads 10876 | -7/Factory | Repaired Imp. Deuterium Engine 11984 | -7/Factory | Discovered new exit (range 6) 11989 | -7/Factory | Identified exit to Lower Caves 12171 | -7/Factory | Repaired Imp. Treads 12328 | -7/Factory | Entered Lower Caves 12407 | -7/Lower Caves | Learned Factory garrison access intel 12433 | -7/Lower Caves | Encountered a Warlord checkpoint 12617 | -7/Lower Caves | Build established: Skirmisher 12709 | -7/Lower Caves | Discovered new exit (range 14) 12729 | -7/Lower Caves | Identified exit to Lower Caves 12731 | -7/Lower Caves | Entered another Lower Caves area 12819 | -7/Lower Caves | Discovered new exit (range 5) 12826 | -7/Lower Caves | Identified exit to Factory 13053 | -7/Lower Caves | Learned 4 Factory zone layouts 13133 | -7/Lower Caves | Learned location of 1 exit from Factory 13174 | -7/Lower Caves | Learned Factory stockpile data 13352 | -7/Lower Caves | Attracted the attention of an 0b10 outpost 13388 | -7/Lower Caves | Destroyed 8 combat bots 13720 | -7/Lower Caves | Attracted the attention of an 0b10 checkpoint 13952 | -7/Lower Caves | Discovered new exit (range 6) 14019 | -7/Lower Caves | Identified exit to Zion 14021 | -7/Lower Caves | Entered Zion 14084 | -7/Zion | System corruption cleaned by Quarantine Array 14221 | -7/Zion | Given the Hacking Drone Bay 14325 | -7/Zion | Identified exit to Proximity Caves 14479 | -7/Zion | Build established: Assassin 14622 | -7/Zion | Given A8's code to call for help 14979 | -7/Zion | Gained Derelict followers 15025 | -7/Zion | Found Prototype Launcher 15025 | -7/Zion | Identified Rocket Array 15314 | -7/Zion | Met Imprinter 15503 | -7/Zion | Enhanced Grunt warped into view, answering call for help 15509 | -7/Zion | Enhanced Grunt warped into view, answering call for help 15663 | -7/Zion | Found CR-A16's Pointy Stick 15754 | -7/Zion | Entered Proximity Caves 15754 | -6/Proximity Caves | Accompanied by 6 allies 16049 | -6/Proximity Caves | Build established: Skirmisher 16127 | -6/Proximity Caves | Discovered exit to Factory (range 11) 16145 | -6/Proximity Caves | Entered Factory 16145 | -6/Factory | Accompanied by 4 allies 16145 | -6/Factory | Evolved 2 slots: Power x1, Utility x1 16146 | -6/Factory | Identified exit to Factory 16147 | -6/Factory | Identified exit to Lower Caves 16149 | -6/Factory | Loaded intel: 4 garrison access locations 16335 | -6/Factory | Repaired Imp. Treads 16485 | -6/Factory | Repaired Med. Treads 16513 | -6/Factory | Repaired Lgt. Treads 16552 | -6/Factory | Repaired Hardlight Generator 17018 | -6/Factory | Discovered exit to Factory (range 14) 17424 | -6/Factory | Entered Lower Caves 17743 | -6/Lower Caves | Discovered new exit (range 15) 17801 | -6/Lower Caves | Identified exit to Lower Caves 17821 | -6/Lower Caves | Entered another Lower Caves area 17889 | -6/Lower Caves | Attracted the attention of an 0b10 outpost 17976 | -6/Lower Caves | Destroyed 8 combat bots 18044 | -6/Lower Caves | Learned Factory non-interactive machine intel 18289 | -6/Lower Caves | Learned location of Extension (-5) 18559 | -6/Lower Caves | Lost 10 parts (2p4n1u3w) 18722 | -6/Lower Caves | Discovered new exit (range 5) 18728 | -6/Lower Caves | Identified exit to Data Miner 18731 | -6/Lower Caves | Entered Data Miner 18732 | -6/Data Miner | Discovered new exit (range 6) 18762 | -6/Data Miner | Met Data Miner 18795 | -6/Data Miner | Learned location of Section 7 (-2) 18795 | -6/Data Miner | Acquired the access code to Warlord's prototype stash 18828 | -6/Data Miner | Build established: Mutant 18828 | -6/Data Miner | Received God Mode back door access code from Data Miner 18866 | -6/Data Miner | Identified exit to Proximity Caves 18868 | -6/Data Miner | Entered Proximity Caves 19163 | -5/Proximity Caves | Discovered exit to Factory (range 8) 19197 | -5/Proximity Caves | Learned 4 Factory zone layouts 19238 | -5/Proximity Caves | Learned Factory emergency access door positions 19287 | -5/Proximity Caves | Entered Factory 19287 | -5/Factory | Evolved 2 slots: Utility x2 19288 | -5/Factory | Identified exit to Factory 19288 | -5/Factory | Identified exit to Extension 19290 | -5/Factory | Loaded intel: 185 non-interactive machine locations 19491 | -5/Factory | Discovered new exit (range 4) 19496 | -5/Factory | Identified exit to Upper Caves 19867 | -5/Factory | Build established: Infiltrator-Gunner 20273 | -5/Factory | Cargo convoy interrupted 20298 | -5/Factory | Incoming assault squad redirected 20302 | -5/Factory | Incoming assault squad redirected 20478 | -5/Factory | Build established: Scavenger-Gunner 20505 | -5/Factory | Garrison activated, responded to threat 20593 | -5/Factory | Core integrity fell below 50% 20602 | -5/Factory | Destroyed 7 combat bots 20623 | -5/Factory | System corruption reached 10% 20645 | -5/Factory | Lost 11 parts (2p2n3u4w) 20699 | -5/Factory | System corruption reached 30% 20787 | -5/Factory | First assault squad dispatched 20807 | -5/Factory | Incoming assault squad redirected 20952 | -5/Factory | Entered Extension 21067 | -5/Extension | Lost 3 parts (1p2n) 21180 | -5/Extension | Rescued a captive Derelict 21181 | -5/Extension | Rescued a captive Derelict 21217 | -5/Extension | Rescued a captive Derelict 21255 | -5/Extension | Build established: Scavenger-Mutant 21846 | -5/Extension | Spotted B-75 Beast 21849 | -5/Extension | Allies destroyed B-75 Beast 21872 | -5/Extension | Spotted B-75 Beast 21890 | -5/Extension | Core integrity fell below 20% 21896 | -5/Extension | Destroyed B-75 Beast 21914 | -5/Extension | Lost 3 allies 21927 | -5/Extension | Disrupted transfer network 22036 | -5/Extension | Lost 4 parts (2n1u1w) 22490 | -5/Extension | Rescued A7 22712 | -5/Extension | Destroyed by Y-64 Sentinel with Wave Gun Last Messages --------------- 22699_ B-60 Warrior Imp. Treads severed. 22699_ 2R-9EQ(g) destroyed. 22700_ 5N-B0O(l) knocked back. 22701_ B-60 Warrior suffers critical hit (Smash). 22701_ Destroyed Imp. Treads. 22701_ B-60 Warrior system corrupted by crushing effect. 22702_ B-60 Warrior system terminally corrupted. 22703_ Y-64 Sentinel Imp. Treads severed. 22706_ NE-116(b) suffers critical hit (Burn). 22706_ Slug penetrates 5N-B0O(l). 22707_ System corrupted: Imp. Medium Treads rejected. 22707_ Acquired Imp. Medium Treads. 22707_ NE-116(b) destroyed. 22708_ Y-64 Sentinel Neutrino Core severed. 22709_ Slug penetrates 5N-B0O(l). 22710_ Y-64 Sentinel Imp. Medium Armor Plating severed. Map ----- +----------------------------------------------------+ | | | | | | | | | | | | | | | ?????????####????????????????????????????????????? | | ?????????#T"#????????????????????????????????????? | | ?????##### "#######??????????????????????????????? | | ?????# ##############?????????????????? | | ###### # #?????????????????? | | + #?????????????????? | | # #?????????????????? | | #####+##+##?????????????????? | | % #???# #??????????????????? | | % ##??# #??????????????????? | | #??# #??????????????????? | | ############# #??# #??????????????????? | | ???????###### #??# ##### #???? | | #####???????# #??# % /* ???? | | #???????# #??###uY##### #???? | | ] #???????# ####+########=l#??????????????????? | | +????? #?# */p%#??????????????????? | | [ #????#######?# ####??????????????????? | | * #????????????# @ #?????????????????????? | | #????????????# #?????????????????????? | | #####????????????###########?????????????????????? | | ?????????????????????????????????????????????????? | | ?????????????????????????????????????????????????? | | ?????????????????????????????????????????????????? | | ?????????????????????????????????????????????????? | | ?????????????????????????????????????????????????? | | ?????????????????????????????????????????????????? | | ?????????????????????????????????????????????????? | | ?????????????????????????????????????????????????? | | ?????????????????????????????????????????????????? | | ?????????????????????????????????????????????????? | | ?????????????????????????????????????????????????? | | ?????????????????????????????????????????????????? | | ?????????????????????????????????????????????????? | | ?????????????????????????????????????????????????? | | ?????????????????????????????????????????????????? | | ?????????????????????????????????????????????????? | | ?????????????????????????????????????????????????? | | ?????????????????????????????????????????????????? | | ?????????????????????????????????????????????????? | | ?????????????????????????????????????????????????? | | ?????????????????????????????????????????????????? | | ?????????????????????????????????????????????????? | +----------------------------------------------------+ Best States ------------- Heat Dissipation 91 Coolant Potential 50 Energy Generation 30 Energy Capacity 505 Matter Stores 300 Matter Capacity 300 Sight Range 16 Robot Scan Range 20 Terrain Scan Density 10 Jamming Range 12 Armor Coverage 450 Weapon Cycling 20 Evasion (%) 55 Targeting Accuracy 8 Core Analysis 6 Recoil Reduction 4 Salvage Targeting 3 Item Schematics ----------------- Huge Storage Unit | -9/Materials | Scanalyzed Hcp. Storage Unit | -9/Materials | Scanalyzed Imp. Salvage Targeting Computer | -7/Zion | Archive Flak Gun | -7/Zion | Archive Enh. Optical Array | -7/Zion | Archive Nuclear Pulse Thruster | -7/Zion | Archive Coolant Injector | -7/Zion | Archive Thermic Laser | -7/Zion | Archive Plasma Cannon | -7/Zion | Archive KE Penetrator | -7/Zion | Archive Imp. Recalibrator | -7/Zion | Archive Core Analyzer | -7/Zion | Archive Imp. Heavy Armor Plating | -7/Zion | Archive Remote Datajack | -7/Zion | Archive Fusion Compressor | -7/Zion | Archive Imp. Carbon-fiber Leg | -7/Zion | Archive Angular Momentum Engine | -7/Zion | Archive Lrn. Phase Cannon | -7/Zion | Archive Riot Gun | -7/Zion | Free Flamer | -7/Zion | Free Slug Cannon | -7/Zion | Free Enh. Flamer | -7/Zion | Free Ripper | -7/Zion | Free Combat Drone Bay | -6/Data Miner | Free Lgt. Regenerative Plating | -6/Data Miner | Free Cld. Nuclear Pulse Thruster | -6/Data Miner | Free Exp. Heat Sink | -6/Data Miner | Free Imp. KE Penetrator | -6/Data Miner | Free Imp. Linear Gravjet | -6/Data Miner | Free Adv. Cryofiber Web | -6/Data Miner | Free Matter Neutralizer | -6/Data Miner | Free Imp. Component Analysis Suite | -6/Data Miner | Free Dispersion Rifle | -6/Data Miner | Free Biometal Medium Treads | -6/Data Miner | Free Robot Schematics ------------------ H-55 Commando | -7/Zion | Archive B-48 Gladiator | -7/Zion | Archive Y-54 Guardian | -7/Zion | Archive A-15 Conveyor | -6/Data Miner | Free S-27 Virus | -6/Data Miner | Free E-15 Imp | -6/Data Miner | Free G-67 Veteran | -6/Data Miner | Free Fabricated ------------ Nothing Repaired ---------- Aluminum Leg | 36% | -10/Materials Hcp. Storage Unit | 59% | -9/Materials Imp. Heat Sink | 15% | -9/Materials Imp. Medium Laser | 31% | -9/Materials Arm. Treads | 57% | -8/Materials Exp. Sensor Array | 62% | -8/Materials Hardlight Generator | 60% | -8/Materials Imp. Medium Laser | 40% | -8/Materials Lgt. Treads | 70% | -7/Factory Imp. Deuterium Engine | 60% | -7/Factory Imp. Treads | 40% | -7/Factory Imp. Treads | 16% | -6/Factory Med. Treads | 24% | -6/Factory Lgt. Treads | 38% | -6/Factory Hardlight Generator | 33% | -6/Factory Alien Tech Used ----------------- None Achievements -------------- None Challenges ------------ None Game ------ Seed NullInertialChainsword Manual? 0 Play Time 02:36:14 Cumulative 80.8 hours Start 2025.05.11 @ 23:36:00 End 2025.05.12 @ 02:11:23 Sessions 1 Manual Loads 0 Difficulty Rogue Special Mode None Game No. 20 Rogue 20 Adventurer 0 Explorer 0 Win Type - Total 5 Types 0/0/3/0/0/0/2/0/0/0 Lore% 46 Gallery% 48 Achievement% 64 Wizard Run 0 Options --------- Layout 1 ASCII 0 Keyboard 0 Movement Arrows Keybinds 0 Fullscreen 2 Font 24/Terminus Map View 50x35 Zoom Use 0% Tactical HUD 1 Map Filters NONE Filters NONE Steam 1 RUN: 42b97538-56f9-423d-af81-192bd3c25cd0